Cogmind - Beta 15 @@@ ROGUE MODE // 2025.07.20 @ 23:02:44 Player: Singularius Result: Destroyed by Shrapnel Trap Performance ------------- Evolutions (0) 0 Regions Visited (2) 400 Robots Destroyed (24) 120 Value Destroyed (718) 718 Prototype IDs (0) 0 Alien Tech Used (0) 0 Bonus (-39) -39 TOTAL SCORE: 1199 Bonus ------- Friendly Fire -39 Cogmind --------- Core Integrity 0/250 Matter 271/300 Energy 100/100 System Corruption 0% Temperature Cool (1) Movement Treading (240) Ox1 Location -10/Subcaves Parts ------- > --- POWER (1) -------- (None) > --- PROPULSION (2) --- Light Treads > --- UTILITY (2) ------ Large Storage Unit > --- WEAPON (2) ------- Autogun Autogun > --- INVENTORY (15) --- Light Ion Engine Subdweller Power Source Scrap Shield Subdweller Beam Cannon Autogun Autogun Battle Rifle Subdweller Machine Gun Mini Grenade Launcher Mace Peak State ------------ > --- POWER ------------ Light Ion Engine > --- PROPULSION ------- Light Treads Spiked Treads > --- UTILITY ---------- Large Storage Unit Medium Armor Plating > --- WEAPON ----------- Autogun Battle Rifle > --- INVENTORY -------- Ion Engine Light Ion Engine Subdweller Power Source Light Treads Seismic Detector Scrap Shield Subdweller Beam Cannon Autogun Autogun Autogun Subdweller Machine Gun Subdweller Machine Gun Mini Grenade Launcher Mace [Rating: 13] Favorites ----------- Power Light Ion Engine Engine Light Ion Engine Propulsion Light Treads Treads Light Treads Utility Seismic Detector Device Seismic Detector Storage Large Storage Unit Protection Medium Armor Plating Weapon Autogun Energy Cannon Subdweller Beam Cannon Ballistic Gun Autogun Launcher Mini Grenade Launcher Build | -11 -10 -10 ------- Run | Yrd Mat Sub Slots Evolved . | . . . Power . | . . . Propulsion . | . . . Utility . | . . . Weapon . | . . . Parts Attached 21 | 7 5 9 Power 2 | 1 . 1 Engine 2 | 1 . 1 Core . | . . . Reactor . | . . . Propulsion 4 | 2 . 2 Treads 4 | 2 . 2 Leg . | . . . Wheel . | . . . Hover . | . . . Flight . | . . . Utility 5 | 2 3 . Device 1 | 1 . . Storage 3 | 1 2 . Processor . | . . . Hackware . | . . . Protection 1 | . 1 . Artifact . | . . . Weapon 10 | 2 2 6 Energy Gun . | . . . Energy Cannon 1 | . . 1 Ballistic Gun 8 | 2 2 4 Ballistic Cannon . | . . . Launcher 1 | . . 1 Special Weapon . | . . . Impact Weapon . | . . . Slashing Weapon . | . . . Piercing Weapon . | . . . Special Melee Weapon . | . . . Unidentified Prototypes . | . . . Parts Lost 7 | . . 7 Power 2 | . . 2 Propulsion 2 | . . 2 Utility 2 | . . 2 Weapon 1 | . . 1 Highest Loss Streak 4 | . . 4 To Critical Strikes . | . . . Average Backups 11 | 3 9 12 Power 2 | . 1 2 Propulsion 1 | 1 1 . Utility 1 | . . 1 Weapon 7 | . 5 7 Tool/Special . | . . . Unused Backups 12 | . 3 9 Power 2 | . . 2 Propulsion 2 | . 2 . Utility 2 | . . 2 Weapon 6 | . 1 5 Tool/Special . | . . . Average Slot Usage (%) 97 | . 100 96 Engine 13 | . 14 13 Treads 26 | . 28 26 Device 11 | . 10 11 Storage 14 | . 14 14 Protection 1 | . 3 1 Ballistic Gun 27 | . 28 26 Peak Build Rating 13 | 7 11 13 Average Rating 10 | 5 10 11 On Entrance 5 | . 7 10 Naked Turns . | . . . Heaviest Build 37 | 12 30 37 Greatest Support 40 | 40 40 40 Greatest Overweight (x) 1 | 1 . 1 Average Overweight (x) . | . . . Largest Inventory Capacity 15 | 8 15 15 Average Capacity 13 | 7 9 15 Most Carried 15 | 4 10 15 Average Carried 12 | 3 9 13 Final Capacity 15 | 8 15 15 Final Carried 11 | 4 10 11 Class Distribution -------------------- 100% | Mutant Dominant Class ---------------- Mutant | -10/Materials Mutant | -10/Subcaves Resources | -11 -10 -10 ----------- Run | Yrd Mat Sub Matter Collected 1303 | 278 354 671 Remotely . | . . . Salvage Created 712 | 11 386 315 Parts 58 | 5 30 23 Haulers Intercepted . | . . . Recyclers Shooed . | . . . Parts Field Recycled . | . . . Retrieved Matter . | . . . Parts Self-Destructed 12 | . . 12 Prevented . | . . . Kills | -11 -10 -10 ------- Run | Yrd Mat Sub Combat Hostiles Destroyed 23 | . 13 10 Guns 19 | . 13 6 AOE 4 | . . 4 Classes Destroyed 4 | 1 2 1 Tunneler 1 | 1 . . Swarmer 6 | . 6 . Grunt 7 | . 7 . Subdweller 10 | . . 10 Best Kill Streak 4 | 1 4 3 Combat Bots Only 4 | . 4 3 Max Kills in Single Turn 1 | 1 1 1 Gunslinging . | . . . Exploded 1 | . . 1 Melee . | . . . Uniques/NPCs Destroyed . | . . . Combat | -11 -10 -10 -------- Run | Yrd Mat Sub Hostile Shots Fired 91 | . 34 57 Missed 30 | . 13 17 Hits 61 | . 21 40 Projectile 61 | . 21 40 AOE 7 | . . 7 Damage Taken 1435 | . 206 1229 Core 255 | . 44 211 Absorbed by Shields . | . . . Core Remaining (%) 100 | 100 . . Volleys Fired 87 | 3 25 59 Largest 2 | 2 2 2 Hottest 80 | 40 46 80 Shots Fired 150 | 6 50 94 Gun 130 | 6 50 74 Cannon 8 | . . 8 Launcher 12 | . . 12 Special . | . . . Kinetic 130 | 6 50 74 Thermal 8 | . . 8 Explosive 12 | . . 12 Electromagnetic . | . . . Robot Hit Streak 18 | 3 6 18 Robot Miss Streak 4 | 1 4 2 Penetration Max . | . . . Secondary Targets 3 | . 2 1 Max Gunslinging Chain 1 | . 1 1 Shots Hit Robots 101 | 4 31 66 Core Hits 35 | 1 14 20 Critical Kills . | . . . Critical Parts Destroyed . | . . . Critical Strikes . | . . . Melee Attacks . | . . . Impact . | . . . Slashing . | . . . Piercing . | . . . Sneak Attacks . | . . . Combat Hostiles . | . . . Follow-up Attacks . | . . . Damage Inflicted 2074 | 44 496 1534 Guns 1511 | 44 496 971 Cannons . | . . . Explosions 563 | . . 563 Melee . | . . . Ramming . | . . . Kinetic 1511 | 44 496 971 Thermal . | . . . Explosive 563 | . . 563 Electromagnetic . | . . . Impact . | . . . Slashing . | . . . Piercing . | . . . Highest Corruption . | . . . Average Corruption . | . . . Corruption Purged . | . . . Corruption Blocked . | . . . Overload Shots . | . . . Overflow Damage . | . . . Projectiles . | . . . Explosions . | . . . Melee . | . . . Knockbacks . | . . . Impact . | . . . Kinetic . | . . . Secondary . | . . . Self-Inflicted Damage 47 | . . 47 Shots 1 | . . 1 Rammed . | . . . Targets Rammed . | . . . Kicked . | . . . Crushed . | . . . Highest Temperature 37 | . 37 1 Average Temperature 13 | . 14 1 Received Heat Transfer 240 | . 51 189 Siege Activations . | . . . Martial Activations . | . . . Shielding Activations . | . . . Robots Disrupted . | . . . Combat Hostiles . | . . . Robots Corrupted . | . . . Combat Hostiles . | . . . Parts Fried . | . . . Impact Corruptions . | . . . Robots Melted . | . . . Combat Hostiles . | . . . Parts Melted 1 | . . 1 Heat Transferred . | . . . Parts Sabotaged . | . . . Parts Stolen . | . . . Parts Stripped . | . . . Power Chain Reactions . | . . . Alert | -11 -10 -10 ------- Run | Yrd Mat Sub Maximum Alert Level . | . . . Low Security (%) 100 | 100 100 . Level 1 . | . . . Level 2 . | . . . Level 3 . | . . . Level 4 . | . . . Level 5 . | . . . High Security . | . . . Max Security . | . . . Peak Influence 186 | 5 186 . Initial . | . . . Average 62 | . 72 . Influence Increases 408 | 5 403 . Destroy 0b10 Robot/C 260 | . 260 . Destroy 0b10 Robot/NC 5 | 5 . . Destroy Leader 50 | . 50 . Destroy Structure 3 | . 3 . Lose Combat Pursuer 90 | . 90 . Influence Decreases 408 | 5 273 130 Entered New Map 63 | . . 63 Time Decay 345 | 5 273 67 Squads Dispatched 2 | . 2 . Investigation . | . . . Extermination . | . . . Reinforcement 2 | . 2 . Assault . | . . . Garrison . | . . . Intercept . | . . . Searches Triggered . | . . . Construction Impeded . | . . . Haulers Reinforced . | . . . Active Scanning Responses . | . . . Cargo Convoy Interrupts . | . . . Stealth | -11 -10 -10 --------- Run | Yrd Mat Sub Distress Signals 3 | . 3 . Communications Jammed . | . . . Distress Signals . | . . . Times Spotted 39 | . 23 16 Peak Tracking Total 5 | . 5 3 Tactical Retreats 5 | . 5 . Traps | -11 -10 -10 ------- Run | Yrd Mat Sub Traps Triggered 3 | . 2 1 Indirectly . | . . . Trap Hack Attempts . | . . . Triggered . | . . . Disarmed . | . . . Reprogrammed . | . . . Reused . | . . . Traps Extracted . | . . . Installed . | . . . Triggered . | . . . Machines | -11 -10 -10 ---------- Run | Yrd Mat Sub Machines Disabled . | . . . Max in Single Turn . | . . . Machines Repaired . | . . . Machines Dismantled . | . . . Machines Sabotaged . | . . . Overloaded Fab Kills . | . . . Hacking | -11 -10 -10 --------- Run | Yrd Mat Sub Machines Accessed 3 | . 2 1 Terminals 2 | . 2 . Fabricators . | . . . Repair Stations . | . . . Recycling Units . | . . . Scanalyzers . | . . . Garrison Access . | . . . Total Hacks 6 | . 4 2 Successful 3 | . 1 2 Failed 3 | . 3 . Catastrophic . | . . . Database Lockouts . | . . . Manual 2 | . 2 . Terminals 4 | . 4 . Fabricators . | . . . Repair Stations . | . . . Recycling Units . | . . . Scanalyzers . | . . . Garrison Access . | . . . Terminal Hacks 2 | . . 2 Record 2 | . . 2 Fabricator Hacks . | . . . Repair Station Hacks . | . . . Recycling Unit Hacks . | . . . Scanalyzer . | . . . Garrison Access Hacks . | . . . Unauthorized Hacks 1 | . 1 . Terminals 1 | . 1 . Botnet 1 | . 1 . Fabricators . | . . . Repair Stations . | . . . Recycling Units . | . . . Scanalyzers . | . . . Garrison Access . | . . . Data Cores Recovered . | . . . Used . | . . . Hacking Detections 2 | . 2 . Full Trace Events . | . . . Feedback Events . | . . . Feedback Blocked . | . . . Robot Schematics Acquired . | . . . Robots Built . | . . . Authchips . | . . . Time . | . . . Total Robot Build Rating . | . . . Part Schematics Acquired . | . . . Parts Built . | . . . Authchips . | . . . Time . | . . . Total Part Build Rating . | . . . Parts Repaired . | . . . Time . | . . . Parts Recycled . | . . . Recycled Matter . | . . . Retrieved Matter . | . . . Retrieved Components . | . . . Parts Scanalyzed . | . . . Part Schematics Acquired . | . . . Parts Damaged . | . . . Bothacking | -11 -10 -10 ------------ Run | Yrd Mat Sub Used RIF Installer . | . . . Robots Hacked . | . . . Non-combat . | . . . Combat . | . . . Robot Hacks Applied . | . . . Relay Couplers Released . | . . . Fabnet Peak Effective % . | . . . Robots Rewired . | . . . Allies Hacked . | . . . Hacks Repelled . | . . . Allies | -11 -10 -10 -------- Run | Yrd Mat Sub Total Allies . | . . . Largest Group . | . . . Highest-Rated Group . | . . . Highest-Rated Ally . | . . . Total Orders . | . . . Ally Attacks . | . . . Total Damage . | . . . Kills . | . . . Allies Corrupted . | . . . Allies Melted . | . . . Intel | -11 -10 -10 ------- Run | Yrd Mat Sub Active Infowar (turns) 2775 | 33 576 2166 Seismic 2775 | 33 576 2166 Robot Analysis Total . | . . . Derelict Logs Recovered 2 | . . 2 Drone Launches . | . . . Drone Recoveries . | . . . Exploration | -11 -10 -10 ------------- Run | Yrd Mat Sub Turns Passed 3532 | 115 765 2652 Spaces Moved 1837 | 53 340 1444 Core 5 | 5 . . Treads 1832 | 48 340 1444 Legs . | . . . Wheels . | . . . Hover . | . . . Flight . | . . . Fastest Speed 50 | 50 160 160 Average Speed 164 | 152 160 166 Slowest Speed 240 | 160 160 240 Overloaded Moves . | . . . Propulsion Burnouts . | . . . Robots Hopped . | . . . Potential Cave-ins . | . . . Cave-ins Triggered . | . . . Exploration Rate (%) 46 | 5 52 81 Regions Visited 2 Branch Regions 1 Pre-discovered Areas 2 | . . 2 Known Exits Taken . | . . . Unknown Exits Taken 2 | 1 1 . Scrap Searched 7 | . . 7 Spaces Dug . | . . . Terrain Destroyed 60 | . . 60 Melee . | . . . Projectile 1 | . . 1 AOE 59 | . . 59 Terrain Rammed . | . . . Walls Destroyed . | . . . Machines Disabled . | . . . Actions | -11 -10 -10 --------- Run | Yrd Mat Sub Total 2195 | 78 518 1599 Wait 181 | 12 119 50 Move 1835 | 52 339 1444 Hop . | . . . Pick Up 21 | 4 9 8 Fast Attach 10 | 7 3 . Attach 5 | . . 5 Detach . | . . . Swap 43 | . 16 27 Drop 13 | . 7 6 Fire 87 | 3 25 59 Melee . | . . . Ram . | . . . Kick . | . . . Crush . | . . . Escape Stasis . | . . . Rewire . | . . . Trap . | . . . Miscellaneous . | . . . Route ------- -11/Scrapyard -10/Materials (discovered 3 exits: [*Mat x2] / *Sub) -10/Subcaves (discovered 1 exit: [*Mat]) History --------- Turn | Location | Event 14 | -11/Scrapyard | Discovered new exit (range 14) 116 | -11/Scrapyard | Entered Materials 320 | -10/Materials | Build established: Mutant 446 | -10/Materials | Discovered new exit (range 6) 787 | -10/Materials | Discovered new exit (range 8) 870 | -10/Materials | Discovered new exit (range 7) 881 | -10/Materials | Entered Subcaves 882 | -10/Subcaves | Approached by a straggling Scientist 960 | -10/Subcaves | Learned Materials stockpile data 1219 | -10/Subcaves | A swath of the cavern ceiling suddenly collapsed 1394 | -10/Subcaves | Shifting Twisted Machinery released Sub. Beam Cannon 1402 | -10/Subcaves | Shifting Twisted Machinery released Flamer 1761 | -10/Subcaves | A swath of the cavern ceiling suddenly collapsed 2233 | -10/Subcaves | Shifting Twisted Machinery released Enh. Flamer 2237 | -10/Subcaves | Shifting Twisted Machinery released Scrap Shield 2376 | -10/Subcaves | Core integrity fell below 50% 2377 | -10/Subcaves | Ambushed by Subdweller buried in earth 2591 | -10/Subcaves | Shifting Twisted Machinery released Sub. Machine Gun 2688 | -10/Subcaves | Discovered new exit (range 15) 2698 | -10/Subcaves | Ambushed by Subdwellers from Twisted Machinery 2906 | -10/Subcaves | Shifting Twisted Machinery released Sub. Laser 3113 | -10/Subcaves | Visited Clippyterm 3118 | -10/Subcaves | Learned location of Section 7 (-2) 3214 | -10/Subcaves | Core integrity fell below 20% 3215 | -10/Subcaves | Ambushed by Subdweller buried in earth 3267 | -10/Subcaves | Lost 4 parts (2n1u1w) 3533 | -10/Subcaves | Destroyed by Shrapnel Trap Last Messages --------------- 03196_ Acquired 7 matter. 03215_ 7B-F8I(R) destroyed. 03216_ C1-GAZ(R): "ARGHSUB!" 03218_ Spk. Treads destroyed. 03223_ C1-GAZ(R) affixes Scrap Shield Fragment to Scrap Shield. 03224_ Lgt. Treads destroyed. 03234_ Seismic Detector destroyed. 03236_ Sub. Machine Gun destroyed. 03238_ C1-GAZ(R) destroyed. 03242_ W4-1FG(R) destroyed. 03247_ Acquired 42 matter. 03278_ SY-W0C(R) destroyed. 03287_ Acquired 9 matter. 03295_ The unstable cave ceiling collapses. 03459_ Acquired 27 matter. 03533_ Triggered Shrapnel Trap. 03533_ An expanding cloud of shrapnel blasts out in all directions. 03533_ Ion Engine destroyed. Map ----- +----------------------------------------------------+ | ?????????????????????????????????????????????????? | | ?????????????????????????????????????????????????? | | ?????????????????????????????????????????????????? | | ?????????????????????????????????????????????????? | | ?????????????????????????????????????????????????? | | ?????????????????????????????????????????????????? | | ?????????????????????????????????????????????????? | | ?????????????????????????????????????????????????? | | ?????????????????????????????????????????????????? | | ?????????????????????????????????????????????????? | | ?????????????????????????????????????????????????? | | ?????????????????????????????????????????????????? | | ????#######??????????????????????????????????????? | | ????# "######???#####??????????##?????????????? | | ????# "## #### #?????????# ###???????????? | | ????# " # #???##???# ##??????????? | | ##?##" #??????? #### #??????????? | | "#?# " # ### ##??????# ^ ???????????? | | #?# #### #####?## #?????????????? | | ### ### ### #??????????????? | | ## #???????????????? | | ### ## #???????????????? | | ##?# ### # #### #???????????????? | | #??## ##?##### ###?## #???????????????? | | ##???## ##?????? ##???# #### #??????????????? | | #?????###???????#?????# @ #????? #??????????????? | | ##????????????????????# #?????????????????????? | | ##??????????????????# #?????????????????????? | | #??????????????????## #?????????????????????? | | ####????????????????## ?????????????????????? | | #?????????????????# ?????????????????????? | | ##????????????????## ????????????????????? | | # # ##????????????????## ????????????????????? | | ##### ##?????????????????# ???????????????????? | | ##???## ##????????????????? ???????????????????? | | ?????# # ##???????????????? ??????????????????? | | ?????#### ##?#?##?????????? ??????????????????? | | ????????## ## #??????????# ?????????????????? | | ?????????## #??????????????####?????????????????? | | ??????????## #???????????????????????????????????? | | ???????????# #???????????????????????????????????? | | ??????????## #???????????????????????????????????? | | ?????????## ##??????????????##???????????????????? | | ?????????# ##?????????###??# #??????????????????? | | ?????????# ##????????# ### ??????????????????? | | ?????????## ##??????? ???????????????????? | | ??########## ##?????? ????????????????????? | | ### # # #?????? #?????????????????????? | | # ## ###????## #??????????????????????? | | ## # ##????### #??????????????????????? | +----------------------------------------------------+ Best States ------------- Heat Dissipation 25 Energy Generation 10 Energy Capacity 250 Matter Stores 300 Matter Capacity 300 Sight Range 16 Terrain Scan Density 10 Armor Coverage 225 Evasion (%) 40 Recoil Reduction 2 Item Schematics ----------------- None Robot Schematics ------------------ None Fabricated ------------ Nothing Repaired ---------- Nothing Alien Tech Used ----------------- None Achievements -------------- None Challenges ------------ None Game ------ Seed DisruptorTacticalNanosword Manual? 0 Play Time 00:25:58 Cumulative 94.5 hours Start 2025.07.20 @ 22:37:31 End 2025.07.20 @ 23:02:44 Sessions 1 Manual Loads 0 Difficulty Rogue Special Mode None Game No. 67 Rogue 67 Adventurer 0 Explorer 0 Win Type - Total 0 Types 0/0/0/0/0/0/0/0/0/0 Lore% 44 Gallery% 39 Achievement% 32 Wizard Run 0 Options --------- Layout 1 ASCII 0 Keyboard 0 Movement Numpad Keybinds 0 Fullscreen 1 Font 24/Smallcaps Map View 50x35 Zoom Use 0% Tactical HUD 1 Map Filters NONE Filters NONE Steam 1 RUN: bfbde395-b14e-4374-bcad-d3a24d5d3132